[Event "*** Titled Tuesday Blitz"]
[Site "Chess.com"]
[Date "2021.03.02"]
[Round "5"]
[White "Stouuf"]
[Black "ChessNinja48"]
[Result "0-1"]
[WhiteElo "2599"]
[BlackElo "2430"]
[TimeControl "180+1"]
[EndTime "10:55:45 PST"]
[Termination "ChessNinja48 won by resignation"]

1. e4 {[%clk 0:03:00.9]} 1... e5 {[%clk 0:02:59.7]} 2. Nf3 {[%clk 0:03:00.7]}
2... Nc6 {[%clk 0:02:59.7]} 3. d4 {[%clk 0:03:01.2]} 3... exd4 {[%clk
0:02:59.7]} 4. Nxd4 {[%clk 0:03:02.1]} 4... Nf6 {[%clk 0:02:59.8]} 5. Nxc6
{[%clk 0:02:58]} 5... bxc6 {[%clk 0:03:00.1]} 6. e5 {[%clk 0:02:56.6]} 6... Qe7
{[%clk 0:03:00.4]} 7. Qe2 {[%clk 0:02:56.2]} 7... Nd5 {[%clk 0:03:00.5]} 8. c4
{[%clk 0:02:50.6]} 8... Nb6 {[%clk 0:03:00.6]} 9. Nc3 {[%clk 0:02:50.6]} 9... a5
{[%clk 0:03:00.4]} 10. b3 {[%clk 0:02:40.2]} 10... a4 {[%clk 0:02:50.1]} 11. Rb1
{[%clk 0:02:29.1]} 11... axb3 {[%clk 0:02:28.7]} 12. axb3 {[%clk 0:02:28.8]}
12... Qh4 {[%clk 0:02:06.2]} 13. g3 {[%clk 0:02:16.6]} 13... Qd4 {[%clk
0:02:04.2]} 14. Bd2 {[%clk 0:02:13.2]} 14... Bb4 {[%clk 0:02:02.4]} 15. Rc1
{[%clk 0:02:00.2]} 15... Ra3 {[%clk 0:02:02.1]} 16. Qd1 {[%clk 0:01:12]} 16...
Qxe5+ {[%clk 0:02:00.2]} 17. Be2 {[%clk 0:01:11]} 17... O-O {[%clk 0:01:59.6]}
18. O-O {[%clk 0:01:10.7]} 18... d6 {[%clk 0:01:47]} 19. Bf4 {[%clk 0:01:06.6]}
19... Qf5 {[%clk 0:01:30.7]} 20. Bd3 {[%clk 0:01:00.6]} 20... Qg4 {[%clk
0:01:17.5]} 21. Be2 {[%clk 0:00:59.6]} 21... Qg6 {[%clk 0:01:11.2]} 22. Bf3
{[%clk 0:00:54]} 22... Bd7 {[%clk 0:01:03.3]} 23. h4 {[%clk 0:00:50]} 23... h6
{[%clk 0:00:48.3]} 24. h5 {[%clk 0:00:50.1]} 24... Qf5 {[%clk 0:00:45.3]} 25.
Ne2 {[%clk 0:00:46.6]} 25... Bc5 {[%clk 0:00:30.7]} 26. Nd4 {[%clk 0:00:43.3]}
26... Bxd4 {[%clk 0:00:29.5]} 27. Qxd4 {[%clk 0:00:44.2]} 27... Rxb3 {[%clk
0:00:29.5]} 28. Bg2 {[%clk 0:00:30.8]} 28... c5 {[%clk 0:00:27.4]} 29. Qd1
{[%clk 0:00:30.1]} 29... Rb2 {[%clk 0:00:26.5]} 30. Re1 {[%clk 0:00:26.8]} 30...
Be6 {[%clk 0:00:26.1]} 31. Be4 {[%clk 0:00:26.9]} 31... Qf6 {[%clk 0:00:20.5]}
32. Bd3 {[%clk 0:00:26.4]} 32... Ra8 {[%clk 0:00:19.4]} 33. Qf3 {[%clk
0:00:26.5]} 33... Raa2 {[%clk 0:00:18.7]} 34. Rf1 {[%clk 0:00:17.2]} 34... Qd4
{[%clk 0:00:18.8]} 35. Rcd1 {[%clk 0:00:13.4]} 35... Qf6 {[%clk 0:00:14]} 36.
Qe4 {[%clk 0:00:13.7]} 36... Kf8 {[%clk 0:00:10.4]} 37. Rde1 {[%clk 0:00:10.2]}
37... Nd7 {[%clk 0:00:09.7]} 38. Qh7 {[%clk 0:00:09.4]} 38... Ne5 {[%clk
0:00:09]} 39. Bxe5 {[%clk 0:00:08.7]} 39... dxe5 {[%clk 0:00:09.9]} 40. Qe4
{[%clk 0:00:07.4]} 40... Rxf2 {[%clk 0:00:09.5]} 41. Re2 {[%clk 0:00:03.9]}
41... Rxf1+ {[%clk 0:00:09.4]} 42. Kg2 {[%clk 0:00:04]} 42... Rxe2+ {[%clk
0:00:09.2]} 43. Bxe2 {[%clk 0:00:04.9]} 43... Ra1 {[%clk 0:00:08.7]} 44. Bf3
{[%clk 0:00:04.9]} 44... Ra2+ {[%clk 0:00:08.9]} 45. Kg1 {[%clk 0:00:05.5]}
45... Qd8 {[%clk 0:00:08.3]} 46. Qe3 {[%clk 0:00:04.7]} 46... Qd4 {[%clk
0:00:08.5]} 0-1

[Event "*** Titled Tuesday Blitz"]
[Site "Chess.com"]
[Date "2021.03.02"]
[Round "5"]
[White "Ajedrez_con_German"]
[Black "TheBigBoss04"]
[Result "0-1"]
[WhiteElo "2562"]
[BlackElo "2749"]
[TimeControl "180+1"]
[EndTime "10:55:47 PST"]
[Termination "TheBigBoss04 won on time"]

1. b3 {[%clk 0:03:00.9]} 1... e5 {[%clk 0:02:57.6]} 2. Bb2 {[%clk 0:02:59.9]}
2... Nc6 {[%clk 0:02:58.3]} 3. e3 {[%clk 0:02:59.1]} 3... Nf6 {[%clk 0:02:56.3]}
4. Bb5 {[%clk 0:02:58.2]} 4... Bd6 {[%clk 0:02:54.4]} 5. Na3 {[%clk 0:02:56.8]}
5... e4 {[%clk 0:02:48.8]} 6. f3 {[%clk 0:02:42.9]} 6... Be5 {[%clk 0:02:08.5]}
7. Qc1 {[%clk 0:02:20.2]} 7... O-O {[%clk 0:02:03.3]} 8. Bxc6 {[%clk 0:02:17.5]}
8... Bxb2 {[%clk 0:02:02.7]} 9. Qxb2 {[%clk 0:02:18.4]} 9... dxc6 {[%clk
0:02:00.6]} 10. O-O-O {[%clk 0:02:17.4]} 10... Be6 {[%clk 0:01:41.6]} 11. Ne2
{[%clk 0:02:11.9]} 11... c5 {[%clk 0:01:35.4]} 12. Ng3 {[%clk 0:01:51.1]} 12...
Qd5 {[%clk 0:01:06]} 13. Nb5 {[%clk 0:01:36.6]} 13... Qc6 {[%clk 0:00:59]} 14.
Nc3 {[%clk 0:01:23.3]} 14... exf3 {[%clk 0:00:55.1]} 15. gxf3 {[%clk 0:01:23.5]}
15... Rfd8 {[%clk 0:00:39.3]} 16. Nce4 {[%clk 0:01:18.7]} 16... Nxe4 {[%clk
0:00:37.9]} 17. Nxe4 {[%clk 0:01:18.4]} 17... Bf5 {[%clk 0:00:33.7]} 18. Rhg1
{[%clk 0:01:15.3]} 18... Bg6 {[%clk 0:00:26]} 19. h4 {[%clk 0:01:12.6]} 19... h5
{[%clk 0:00:26.1]} 20. Ng5 {[%clk 0:00:47.3]} 20... c4 {[%clk 0:00:24.4]} 21.
Rg3 {[%clk 0:00:37.4]} 21... a5 {[%clk 0:00:21.6]} 22. Rdg1 {[%clk 0:00:34.1]}
22... Rd6 {[%clk 0:00:21.9]} 23. f4 {[%clk 0:00:24.8]} 23... Qd7 {[%clk
0:00:15.9]} 24. Nf3 {[%clk 0:00:20.7]} 24... cxb3 {[%clk 0:00:12.2]} 25. Ne5
{[%clk 0:00:18.5]} 25... Qf5 {[%clk 0:00:09.1]} 26. Nxg6 {[%clk 0:00:17.9]}
26... fxg6 {[%clk 0:00:09.5]} 27. axb3 {[%clk 0:00:15.9]} 27... a4 {[%clk
0:00:08.6]} 28. Rg5 {[%clk 0:00:16]} 28... Qf7 {[%clk 0:00:07]} 29. f5 {[%clk
0:00:15.8]} 29... axb3 {[%clk 0:00:06.3]} 30. Qxb3 {[%clk 0:00:16.2]} 30... Ra1+
{[%clk 0:00:04.6]} 31. Kb2 {[%clk 0:00:15.4]} 31... Qxb3+ {[%clk 0:00:05]} 32.
Kxb3 {[%clk 0:00:14.2]} 32... Rxg1 {[%clk 0:00:05.9]} 33. Rxg1 {[%clk
0:00:14.5]} 33... gxf5 {[%clk 0:00:05.4]} 34. d3 {[%clk 0:00:15.1]} 34... Kf7
{[%clk 0:00:05.6]} 35. Rg5 {[%clk 0:00:14.6]} 35... g6 {[%clk 0:00:05.5]} 36. e4
{[%clk 0:00:15.1]} 36... fxe4 {[%clk 0:00:05.6]} 37. dxe4 {[%clk 0:00:16]} 37...
Rd4 {[%clk 0:00:05.8]} 38. Rc5 {[%clk 0:00:14.3]} 38... c6 {[%clk 0:00:05.6]}
39. e5 {[%clk 0:00:14.9]} 39... Rxh4 {[%clk 0:00:05.5]} 40. Ra5 {[%clk
0:00:15.1]} 40... Ke6 {[%clk 0:00:05.3]} 41. Ra7 {[%clk 0:00:15]} 41... b5
{[%clk 0:00:05.4]} 42. Ra6 {[%clk 0:00:14.1]} 42... Rc4 {[%clk 0:00:05.7]} 43.
Rxc6+ {[%clk 0:00:12.7]} 43... Rxc6 {[%clk 0:00:05.3]} 0-1

[Event "*** Titled Tuesday Blitz"]
[Site "Chess.com"]
[Date "2021.03.02"]
[Round "5"]
[White "arminmusovic"]
[Black "urutodo"]
[Result "1-0"]
[WhiteElo "2538"]
[BlackElo "2297"]
[TimeControl "180+1"]
[EndTime "10:55:47 PST"]
[Termination "arminmusovic won on time"]

1. a3 {[%clk 0:03:00.9]} 1... c6 {[%clk 0:02:58.2]} 2. Nc3 {[%clk 0:03:01.8]}
2... d5 {[%clk 0:02:58.4]} 3. e4 {[%clk 0:03:02]} 3... dxe4 {[%clk 0:02:56.8]}
4. Nxe4 {[%clk 0:03:02.3]} 4... Nf6 {[%clk 0:02:57.4]} 5. Nxf6+ {[%clk
0:03:01.7]} 5... exf6 {[%clk 0:02:58.3]} 6. Nf3 {[%clk 0:03:02.5]} 6... Bd6
{[%clk 0:02:58.6]} 7. Be2 {[%clk 0:03:02.7]} 7... O-O {[%clk 0:02:58.8]} 8. O-O
{[%clk 0:03:03.6]} 8... Re8 {[%clk 0:02:58.9]} 9. h3 {[%clk 0:03:04.5]} 9... Bf5
{[%clk 0:02:58]} 10. d4 {[%clk 0:03:05]} 10... Nd7 {[%clk 0:02:57.7]} 11. Bd3
{[%clk 0:03:04.8]} 11... Bxd3 {[%clk 0:02:54.8]} 12. Qxd3 {[%clk 0:03:05.7]}
12... Qc7 {[%clk 0:02:53.2]} 13. Rd1 {[%clk 0:03:03.3]} 13... Rad8 {[%clk
0:02:52.6]} 14. Be3 {[%clk 0:03:03]} 14... Bf4 {[%clk 0:02:48.9]} 15. Bxf4
{[%clk 0:02:53.2]} 15... Qxf4 {[%clk 0:02:49.8]} 16. Qb3 {[%clk 0:02:53.8]}
16... Nb6 {[%clk 0:02:26.6]} 17. a4 {[%clk 0:02:50.3]} 17... Rd7 {[%clk
0:02:24.6]} 18. c4 {[%clk 0:02:46.1]} 18... Rde7 {[%clk 0:02:19.4]} 19. a5
{[%clk 0:02:43.1]} 19... Nc8 {[%clk 0:02:19.1]} 20. Qd3 {[%clk 0:02:08.5]} 20...
g6 {[%clk 0:02:16.4]} 21. b4 {[%clk 0:02:05.3]} 21... Nd6 {[%clk 0:02:04.2]} 22.
a6 {[%clk 0:01:41.3]} 22... b6 {[%clk 0:02:02]} 23. d5 {[%clk 0:01:34]} 23...
cxd5 {[%clk 0:01:56.8]} 24. Qxd5 {[%clk 0:01:34.9]} 24... Nf5 {[%clk 0:01:38.3]}
25. c5 {[%clk 0:01:28.5]} 25... bxc5 {[%clk 0:01:31.1]} 26. Qxc5 {[%clk
0:01:22.8]} 26... Kg7 {[%clk 0:01:26]} 27. b5 {[%clk 0:01:21]} 27... Rc7 {[%clk
0:01:11.1]} 28. Qd5 {[%clk 0:01:11.8]} 28... Rb8 {[%clk 0:01:06]} 29. Rab1
{[%clk 0:01:05.5]} 29... Rb6 {[%clk 0:01:02.7]} 30. Rb3 {[%clk 0:00:53.5]} 30...
h5 {[%clk 0:00:49.6]} 31. Qd3 {[%clk 0:00:53]} 31... h4 {[%clk 0:00:46.2]} 32.
Qd5 {[%clk 0:00:53.2]} 32... Rc1 {[%clk 0:00:45.9]} 33. Rd3 {[%clk 0:00:48.2]}
33... Rd6 {[%clk 0:00:34.8]} 34. Qb3 {[%clk 0:00:26.8]} 34... Rxd1+ {[%clk
0:00:22.8]} 35. Qxd1 {[%clk 0:00:26.6]} 35... Qb4 {[%clk 0:00:23.3]} 36. Rd5
{[%clk 0:00:21.8]} 36... Rxd5 {[%clk 0:00:13.9]} 37. Qxd5 {[%clk 0:00:22.7]}
37... Qb1+ {[%clk 0:00:10.3]} 38. Kh2 {[%clk 0:00:22.6]} 38... Qb2 {[%clk
0:00:09.7]} 39. Qd2 {[%clk 0:00:19.1]} 39... Qxb5 {[%clk 0:00:08.6]} 40. g4
{[%clk 0:00:18.7]} 40... Ne7 {[%clk 0:00:06.7]} 41. Kg2 {[%clk 0:00:18.5]} 41...
Qb8 {[%clk 0:00:06.6]} 42. Nxh4 {[%clk 0:00:18.2]} 42... Qe5 {[%clk 0:00:05.6]}
43. Nf3 {[%clk 0:00:18.2]} 43... Qe4 {[%clk 0:00:06.1]} 44. Qd4 {[%clk
0:00:18.5]} 44... Qxd4 {[%clk 0:00:03.3]} 45. Nxd4 {[%clk 0:00:19.4]} 45... Nd5
{[%clk 0:00:03.2]} 46. Nb5 {[%clk 0:00:19.2]} 46... Nb4 {[%clk 0:00:02.2]} 47.
Nc7 {[%clk 0:00:19.3]} 47... Nxa6 {[%clk 0:00:03.1]} 48. Nxa6 {[%clk 0:00:20.2]}
48... f5 {[%clk 0:00:01.6]} 49. g5 {[%clk 0:00:20.1]} 49... f6 {[%clk 0:00:01]}
50. h4 {[%clk 0:00:21]} 1-0

[Event "*** Titled Tuesday Blitz"]
[Site "Chess.com"]
[Date "2021.03.02"]
[Round "5"]
[White "lucasmito"]
[Black "LuisFSiles"]
[Result "0-1"]
[WhiteElo "2499"]
[BlackElo "2308"]
[TimeControl "180+1"]
[EndTime "10:55:47 PST"]
[Termination "LuisFSiles won by resignation"]

1. e4 {[%clk 0:02:53]} 1... e5 {[%clk 0:02:57.7]} 2. Nf3 {[%clk 0:02:51.3]} 2...
Nc6 {[%clk 0:02:56.9]} 3. Bb5 {[%clk 0:02:51.1]} 3... a6 {[%clk 0:02:56.1]} 4.
Ba4 {[%clk 0:02:51.1]} 4... Nf6 {[%clk 0:02:55.6]} 5. O-O {[%clk 0:02:50.3]}
5... Be7 {[%clk 0:02:56]} 6. Bxc6 {[%clk 0:02:49.9]} 6... dxc6 {[%clk
0:02:54.6]} 7. d3 {[%clk 0:02:49.8]} 7... Nd7 {[%clk 0:02:53.5]} 8. Nbd2 {[%clk
0:02:47.3]} 8... c5 {[%clk 0:02:48.6]} 9. Nc4 {[%clk 0:02:42.6]} 9... Bd6 {[%clk
0:02:48.1]} 10. b3 {[%clk 0:02:36.3]} 10... O-O {[%clk 0:02:45.2]} 11. Qe2
{[%clk 0:02:34.2]} 11... Re8 {[%clk 0:02:32.1]} 12. Be3 {[%clk 0:02:15.5]} 12...
Nb8 {[%clk 0:02:25.5]} 13. Rad1 {[%clk 0:02:05.8]} 13... Nc6 {[%clk 0:02:24.3]}
14. c3 {[%clk 0:02:05.7]} 14... b5 {[%clk 0:02:15.6]} 15. Nb2 {[%clk 0:02:03.1]}
15... Qe7 {[%clk 0:02:04.8]} 16. Rfe1 {[%clk 0:01:45.5]} 16... Bg4 {[%clk
0:01:54.4]} 17. h3 {[%clk 0:01:44.6]} 17... Bh5 {[%clk 0:01:54.5]} 18. g4 {[%clk
0:01:41.2]} 18... Bg6 {[%clk 0:01:53.7]} 19. Bg5 {[%clk 0:01:33.3]} 19... f6
{[%clk 0:01:41.1]} 20. Bc1 {[%clk 0:01:33]} 20... b4 {[%clk 0:01:39.7]} 21. cxb4
{[%clk 0:01:32.2]} 21... cxb4 {[%clk 0:01:38.8]} 22. Be3 {[%clk 0:01:19.2]}
22... Rad8 {[%clk 0:01:22.5]} 23. Rc1 {[%clk 0:01:16.8]} 23... Nd4 {[%clk
0:01:22.8]} 24. Nxd4 {[%clk 0:01:07.1]} 24... exd4 {[%clk 0:01:22.4]} 25. Bxd4
{[%clk 0:01:06.2]} 25... Bf4 {[%clk 0:01:02.3]} 26. Be3 {[%clk 0:00:56.6]} 26...
Bxe3 {[%clk 0:01:01.6]} 27. Qxe3 {[%clk 0:00:57.4]} 27... Bf7 {[%clk 0:00:53.4]}
28. Rc6 {[%clk 0:00:51.9]} 28... Qe5 {[%clk 0:00:48.5]} 29. Na4 {[%clk
0:00:34.4]} 29... g5 {[%clk 0:00:40.7]} 30. Rec1 {[%clk 0:00:33.4]} 30... Re7
{[%clk 0:00:36.9]} 31. R6c5 {[%clk 0:00:28.8]} 31... Qd6 {[%clk 0:00:34.4]} 32.
Kg2 {[%clk 0:00:20.4]} 32... Bg6 {[%clk 0:00:30.3]} 33. f3 {[%clk 0:00:18.2]}
33... h5 {[%clk 0:00:29.8]} 34. R1c4 {[%clk 0:00:16.4]} 34... h4 {[%clk
0:00:29.8]} 35. d4 {[%clk 0:00:16.2]} 35... Qg3+ {[%clk 0:00:29.7]} 36. Kf1
{[%clk 0:00:16.8]} 36... Qxh3+ {[%clk 0:00:29.7]} 37. Ke2 {[%clk 0:00:16]} 37...
Rde8 {[%clk 0:00:26.9]} 38. d5 {[%clk 0:00:13.4]} 38... Qh2+ {[%clk 0:00:26.4]}
39. Kd3 {[%clk 0:00:13.6]} 39... Qh1 {[%clk 0:00:25.5]} 40. Rxc7 {[%clk
0:00:12.6]} 40... Qb1+ {[%clk 0:00:25.4]} 41. Kd4 {[%clk 0:00:12.1]} 41... Rxc7
{[%clk 0:00:25.4]} 42. Rxc7 {[%clk 0:00:11.5]} 42... Qa1+ {[%clk 0:00:26.3]} 43.
Kc5 {[%clk 0:00:10.9]} 43... Qe5 {[%clk 0:00:25.2]} 44. Rc6 {[%clk 0:00:09.7]}
44... Qb8 {[%clk 0:00:24.4]} 45. d6 {[%clk 0:00:08.6]} 45... Qb5+ {[%clk
0:00:24.3]} 46. Kd4 {[%clk 0:00:07.3]} 46... Qxc6 {[%clk 0:00:24.4]} 47. Qe2
{[%clk 0:00:06.5]} 47... Qxd6+ {[%clk 0:00:24.6]} 48. Ke3 {[%clk 0:00:07.4]}
48... Qf4+ {[%clk 0:00:23.9]} 49. Kf2 {[%clk 0:00:08.3]} 49... Qh2+ {[%clk
0:00:24.1]} 50. Ke3 {[%clk 0:00:08.3]} 0-1

[Event "*** Titled Tuesday Blitz"]
[Site "Chess.com"]
[Date "2021.03.02"]
[Round "5"]
[White "BogdanDeac"]
[Black "German_Bazeev"]
[Result "1-0"]
[WhiteElo "2986"]
[BlackElo "2728"]
[TimeControl "180+1"]
[EndTime "10:55:49 PST"]
[Termination "BogdanDeac won by resignation"]

1. d4 {[%clk 0:02:56.9]} 1... Nf6 {[%clk 0:02:56.3]} 2. Nf3 {[%clk 0:02:53.7]}
2... b6 {[%clk 0:02:56]} 3. c4 {[%clk 0:02:53.2]} 3... Bb7 {[%clk 0:02:55.7]} 4.
g3 {[%clk 0:02:51.1]} 4... Bxf3 {[%clk 0:02:55.3]} 5. exf3 {[%clk 0:02:51]} 5...
e6 {[%clk 0:02:56.2]} 6. Bg2 {[%clk 0:02:44.4]} 6... d5 {[%clk 0:02:57.1]} 7.
O-O {[%clk 0:02:36]} 7... Be7 {[%clk 0:02:55.4]} 8. cxd5 {[%clk 0:02:31]} 8...
Nxd5 {[%clk 0:02:53.9]} 9. f4 {[%clk 0:02:30.5]} 9... O-O {[%clk 0:02:53]} 10.
Nc3 {[%clk 0:02:30.3]} 10... c6 {[%clk 0:02:52.7]} 11. Re1 {[%clk 0:02:04]}
11... Bf6 {[%clk 0:02:47.9]} 12. Be3 {[%clk 0:01:55.2]} 12... g6 {[%clk
0:02:41.4]} 13. Rc1 {[%clk 0:01:54.4]} 13... Nd7 {[%clk 0:02:38.7]} 14. Ne4
{[%clk 0:01:53]} 14... Rc8 {[%clk 0:02:30.5]} 15. Qa4 {[%clk 0:01:41.4]} 15...
b5 {[%clk 0:02:26]} 16. Qxa7 {[%clk 0:01:39.4]} 16... Be7 {[%clk 0:02:20.3]} 17.
Nc5 {[%clk 0:01:16.2]} 17... Nxc5 {[%clk 0:01:53]} 18. dxc5 {[%clk 0:01:14]}
18... Bf6 {[%clk 0:01:53.6]} 19. Qa3 {[%clk 0:00:54.3]} 19... Ra8 {[%clk
0:01:53.7]} 20. Qb3 {[%clk 0:00:54.3]} 20... Qa5 {[%clk 0:01:54.3]} 21. a3
{[%clk 0:00:30.7]} 21... Qa4 {[%clk 0:01:54]} 22. Qc2 {[%clk 0:00:29.9]} 22...
Qxc2 {[%clk 0:01:44.2]} 23. Rxc2 {[%clk 0:00:30.8]} 23... Ra4 {[%clk 0:01:44.3]}
24. Bd2 {[%clk 0:00:27]} 24... Rb8 {[%clk 0:01:35.3]} 25. h4 {[%clk 0:00:21]}
25... h5 {[%clk 0:01:27.6]} 26. Bf3 {[%clk 0:00:19.8]} 26... Kg7 {[%clk
0:01:26]} 27. Kg2 {[%clk 0:00:19.6]} 27... Rba8 {[%clk 0:01:22.7]} 28. Rec1
{[%clk 0:00:13.2]} 28... Bd4 {[%clk 0:01:11.1]} 29. Kf1 {[%clk 0:00:12.7]} 29...
Bf6 {[%clk 0:01:06.9]} 30. Ke2 {[%clk 0:00:12.5]} 30... Re8 {[%clk 0:01:05.3]}
31. Kf1 {[%clk 0:00:12.3]} 31... Rd8 {[%clk 0:01:05.4]} 32. Be2 {[%clk
0:00:11.6]} 32... Ne7 {[%clk 0:01:03.4]} 33. Bc3 {[%clk 0:00:08.7]} 33... Bxc3
{[%clk 0:01:01.5]} 34. Rxc3 {[%clk 0:00:09.6]} 34... Rad4 {[%clk 0:00:57.5]} 35.
Bf3 {[%clk 0:00:08.7]} 35... Nd5 {[%clk 0:00:57.1]} 36. R3c2 {[%clk 0:00:07.3]}
36... Rd3 {[%clk 0:00:54.2]} 37. Kg2 {[%clk 0:00:06.9]} 37... Rb3 {[%clk
0:00:48.9]} 38. Be2 {[%clk 0:00:07]} 38... Ra8 {[%clk 0:00:47.8]} 39. Rd1 {[%clk
0:00:06.6]} 39... Ra4 {[%clk 0:00:47.9]} 40. Rdd2 {[%clk 0:00:06.3]} 40... Kf6
{[%clk 0:00:18.5]} 41. Bd1 {[%clk 0:00:06.1]} 41... Re4 {[%clk 0:00:09.2]} 42.
Kf1 {[%clk 0:00:04.4]} 42... b4 {[%clk 0:00:04.1]} 43. Rc1 {[%clk 0:00:03.9]}
43... bxa3 {[%clk 0:00:02.8]} 44. Bxb3 {[%clk 0:00:03.9]} 1-0

[Event "*** Titled Tuesday Blitz"]
[Site "Chess.com"]
[Date "2021.03.02"]
[Round "5"]
[White "rachidhuilda"]
[Black "mortngabriel"]
[Result "1/2-1/2"]
[WhiteElo "2293"]
[BlackElo "2468"]
[TimeControl "180+1"]
[EndTime "10:55:49 PST"]
[Termination "Game drawn by repetition"]

1. d4 {[%clk 0:03:00.9]} 1... Nf6 {[%clk 0:02:59.5]} 2. Bg5 {[%clk 0:02:59.2]}
2... d5 {[%clk 0:02:51.7]} 3. Bxf6 {[%clk 0:02:58.7]} 3... gxf6 {[%clk
0:02:48.9]} 4. c4 {[%clk 0:02:58]} 4... dxc4 {[%clk 0:02:35.5]} 5. e3 {[%clk
0:02:50.4]} 5... e6 {[%clk 0:02:29.2]} 6. Bxc4 {[%clk 0:02:49.2]} 6... a6 {[%clk
0:02:23.7]} 7. Nc3 {[%clk 0:02:48.8]} 7... Nd7 {[%clk 0:02:04.6]} 8. Qh5 {[%clk
0:02:40.8]} 8... Nb6 {[%clk 0:01:59.1]} 9. Bb3 {[%clk 0:02:37.7]} 9... f5 {[%clk
0:01:50]} 10. Nf3 {[%clk 0:02:04.8]} 10... Qf6 {[%clk 0:01:49.5]} 11. O-O-O
{[%clk 0:01:43.7]} 11... Bd7 {[%clk 0:01:38.9]} 12. Ne5 {[%clk 0:01:41.5]} 12...
Bd6 {[%clk 0:01:29.3]} 13. f4 {[%clk 0:01:39]} 13... Bxe5 {[%clk 0:01:27.5]} 14.
dxe5 {[%clk 0:01:32.6]} 14... Qg6 {[%clk 0:01:28.4]} 15. Qe2 {[%clk 0:01:28.1]}
15... O-O-O {[%clk 0:01:26.7]} 16. g3 {[%clk 0:01:15.9]} 16... Bc6 {[%clk
0:01:26.6]} 17. Rhe1 {[%clk 0:01:14.9]} 17... h5 {[%clk 0:01:24.3]} 18. Rg1
{[%clk 0:01:03.8]} 18... Qg4 {[%clk 0:01:21.6]} 19. Rxd8+ {[%clk 0:00:58.5]}
19... Rxd8 {[%clk 0:01:18.9]} 20. Rd1 {[%clk 0:00:58.2]} 20... Rxd1+ {[%clk
0:01:05.9]} 21. Bxd1 {[%clk 0:00:57.7]} 21... Qg7 {[%clk 0:00:38.5]} 22. Qxh5
{[%clk 0:00:53.2]} 22... Nc4 {[%clk 0:00:39]} 23. Qe2 {[%clk 0:00:50]} 23... b5
{[%clk 0:00:38.2]} 24. Bb3 {[%clk 0:00:48]} 24... Bd5 {[%clk 0:00:30.8]} 25.
Nxd5 {[%clk 0:00:43]} 25... exd5 {[%clk 0:00:31.7]} 26. Bxc4 {[%clk 0:00:42.7]}
26... bxc4 {[%clk 0:00:23.1]} 27. Qd2 {[%clk 0:00:40.6]} 27... c6 {[%clk
0:00:18.2]} 28. Qa5 {[%clk 0:00:38.6]} 28... Kb7 {[%clk 0:00:17.7]} 29. Qb4+
{[%clk 0:00:37.9]} 29... Kc7 {[%clk 0:00:17.2]} 30. Qe7+ {[%clk 0:00:27.5]}
30... Kb6 {[%clk 0:00:17.6]} 31. e6 {[%clk 0:00:22.8]} 31... c3 {[%clk 0:00:17]}
32. b3 {[%clk 0:00:20.8]} 32... c2 {[%clk 0:00:16.8]} 33. Kxc2 {[%clk
0:00:17.7]} 33... Qa1 {[%clk 0:00:14.3]} 34. exf7 {[%clk 0:00:14.2]} 34... Qxa2+
{[%clk 0:00:11.8]} 35. Kc3 {[%clk 0:00:13.9]} 35... Qa1+ {[%clk 0:00:10.2]} 36.
Kd3 {[%clk 0:00:12.7]} 36... Qd1+ {[%clk 0:00:09.2]} 37. Kc3 {[%clk 0:00:12.2]}
37... Qa1+ {[%clk 0:00:06.4]} 38. Kd2 {[%clk 0:00:09.9]} 38... Qb2+ {[%clk
0:00:04.1]} 39. Ke1 {[%clk 0:00:08.9]} 39... Qc1+ {[%clk 0:00:03.7]} 40. Kf2
{[%clk 0:00:08.5]} 40... Qd2+ {[%clk 0:00:04]} 41. Kg1 {[%clk 0:00:07.4]} 41...
Qd1+ {[%clk 0:00:03.9]} 42. Kg2 {[%clk 0:00:08]} 42... Qe2+ {[%clk 0:00:04.2]}
43. Kh3 {[%clk 0:00:07.9]} 43... Qh5+ {[%clk 0:00:04.6]} 44. Kg2 {[%clk
0:00:05.5]} 44... Qe2+ {[%clk 0:00:04.5]} 45. Kg1 {[%clk 0:00:04.4]} 45... Qd1+
{[%clk 0:00:04.2]} 46. Kg2 {[%clk 0:00:04.8]} 46... Qe2+ {[%clk 0:00:04.2]}
1/2-1/2

[Event "*** Titled Tuesday Blitz"]
[Site "Chess.com"]
[Date "2021.03.02"]
[Round "5"]
[White "GMJustin"]
[Black "shaheus"]
[Result "0-1"]
[WhiteElo "2246"]
[BlackElo "2438"]
[TimeControl "180+1"]
[EndTime "10:55:53 PST"]
[Termination "shaheus won on time"]

1. a3 {[%clk 0:02:56.8]} 1... e5 {[%clk 0:02:59]} 2. e3 {[%clk 0:02:52.4]} 2...
Nf6 {[%clk 0:02:57.3]} 3. c4 {[%clk 0:02:48.6]} 3... d6 {[%clk 0:02:52.7]} 4.
Nc3 {[%clk 0:02:42.4]} 4... g6 {[%clk 0:02:52.1]} 5. d4 {[%clk 0:02:31]} 5...
Nbd7 {[%clk 0:02:50.9]} 6. Bd3 {[%clk 0:02:18.5]} 6... Bg7 {[%clk 0:02:50.2]} 7.
Nge2 {[%clk 0:02:17.9]} 7... O-O {[%clk 0:02:49.5]} 8. O-O {[%clk 0:02:17.4]}
8... c6 {[%clk 0:02:43.2]} 9. b4 {[%clk 0:02:13]} 9... Qe7 {[%clk 0:02:39.1]}
10. Bb2 {[%clk 0:02:08.2]} 10... Re8 {[%clk 0:02:33.6]} 11. Qb3 {[%clk
0:02:03.6]} 11... Nf8 {[%clk 0:02:18.7]} 12. c5 {[%clk 0:01:50.2]} 12... exd4
{[%clk 0:02:02.8]} 13. cxd6 {[%clk 0:01:39]} 13... Qxd6 {[%clk 0:02:00.7]} 14.
Nxd4 {[%clk 0:01:39]} 14... Ng4 {[%clk 0:01:51.9]} 15. g3 {[%clk 0:01:27.5]}
15... Ne5 {[%clk 0:01:44.2]} 16. Be2 {[%clk 0:01:16.9]} 16... Bh3 {[%clk
0:01:43.5]} 17. Rfd1 {[%clk 0:01:16.5]} 17... Qe7 {[%clk 0:01:33.4]} 18. Rac1
{[%clk 0:01:13]} 18... Rad8 {[%clk 0:01:32.9]} 19. Ne4 {[%clk 0:01:02.4]} 19...
Bg4 {[%clk 0:01:19]} 20. Bxg4 {[%clk 0:00:44.3]} 20... Nxg4 {[%clk 0:01:16.8]}
21. Nc5 {[%clk 0:00:42.4]} 21... b6 {[%clk 0:00:49]} 22. Nxc6 {[%clk 0:00:36.9]}
22... Rxd1+ {[%clk 0:00:44.5]} 23. Qxd1 {[%clk 0:00:35.2]} 23... Qg5 {[%clk
0:00:35.4]} 24. Bxg7 {[%clk 0:00:29.9]} 24... Kxg7 {[%clk 0:00:29.1]} 25. Qd4+
{[%clk 0:00:25.9]} 25... Kg8 {[%clk 0:00:26.9]} 26. Ne4 {[%clk 0:00:13.4]} 26...
Qh5 {[%clk 0:00:25.3]} 27. Nf6+ {[%clk 0:00:09.6]} 27... Nxf6 {[%clk 0:00:22.8]}
28. Qxf6 {[%clk 0:00:10.2]} 28... Nd7 {[%clk 0:00:15.1]} 29. Qd4 {[%clk
0:00:05.6]} 29... Qf5 {[%clk 0:00:10.4]} 30. Nxa7 {[%clk 0:00:04]} 30... Ne5
{[%clk 0:00:09.6]} 31. Rd1 {[%clk 0:00:02.7]} 31... Nf3+ {[%clk 0:00:09.1]} 32.
Kg2 {[%clk 0:00:03.1]} 32... Nxd4 {[%clk 0:00:09.3]} 33. Rxd4 {[%clk 0:00:03.3]}
33... Qe6 {[%clk 0:00:08.2]} 34. Nb5 {[%clk 0:00:02.6]} 34... Re7 {[%clk
0:00:06.6]} 35. Kg1 {[%clk 0:00:02.7]} 35... Kg7 {[%clk 0:00:06.8]} 36. Nc3
{[%clk 0:00:02.8]} 36... Qb3 {[%clk 0:00:07.4]} 37. Ne4 {[%clk 0:00:02.7]} 37...
Qxa3 {[%clk 0:00:06.8]} 38. Kg2 {[%clk 0:00:02.8]} 38... Qb2 {[%clk 0:00:06.6]}
39. Nd6 {[%clk 0:00:03]} 39... Qc3 {[%clk 0:00:05.8]} 40. b5 {[%clk 0:00:03.2]}
40... Rd7 {[%clk 0:00:05.1]} 41. Nf5+ {[%clk 0:00:02.5]} 41... gxf5 {[%clk
0:00:05.3]} 42. Rxd7 {[%clk 0:00:02.8]} 42... Qc5 {[%clk 0:00:05]} 43. Ra7
{[%clk 0:00:01.8]} 43... Qxb5 {[%clk 0:00:05]} 44. Kf3 {[%clk 0:00:01.7]} 44...
Qd5+ {[%clk 0:00:05]} 45. Ke2 {[%clk 0:00:01.8]} 45... b5 {[%clk 0:00:05.1]} 0-1